Workbook

Sheet 1.사업비 총괄(종합)
B2: 혁신기술 지원사업 사업비 기준 (단위 : 천원)
B3: 1) 정부지원금 75%, 민간부담금 25%
B4: 2) 민간 현금/현물 비율 (현금 10% 이상) | F4: 소프트웨어 개발 과제여부 (예/아니오) | G4: 아니오
B5: 연차 | C5: 정부지원금 | D5: 민간합계 | E5: 민간현금 | F5: 민간현물 | G5: 총사업비합계
B6: 1차년도 | C6: ='1.사업비 총괄(주관)'!C6+'1.사업비 총괄(공동)'!C6 -> 666666 | D6: =E6+F6 -> 222223 | E6: ='1.사업비 총괄(주관)'!E6+'1.사업비 총괄(공동)'!E6 -> 22223 | F6: ='1.사업비 총괄(주관)'!F6+'1.사업비 총괄(공동)'!F6 -> 200000 | G6: =C6+D6 -> 888889
B7: 2차년도 | C7: ='1.사업비 총괄(주관)'!C7+'1.사업비 총괄(공동)'!C7 -> 666666 | D7: =E7+F7 -> 222222 | E7: ='1.사업비 총괄(주관)'!E7+'1.사업비 총괄(공동)'!E7 -> 22222 | F7: ='1.사업비 총괄(주관)'!F7+'1.사업비 총괄(공동)'!F7 -> 200000 | G7: =C7+D7 -> 888888
B8: 3차년도 | C8: ='1.사업비 총괄(주관)'!C8+'1.사업비 총괄(공동)'!C8 -> 666666 | D8: =E8+F8 -> 222222 | E8: ='1.사업비 총괄(주관)'!E8+'1.사업비 총괄(공동)'!E8 -> 22222 | F8: ='1.사업비 총괄(주관)'!F8+'1.사업비 총괄(공동)'!F8 -> 200000 | G8: =C8+D8 -> 888888
B9: 합계 | C9: =SUM(C6:C8) -> 1999998 | D9: =SUM(D6:D8) -> 666667 | E9: =SUM(E6:E8) -> 66667 | F9: =SUM(F6:F8) -> 600000 | G9: =SUM(G6:G8) -> 2666665
B10: % | C10: =C9/G9 -> 0.7499997187 | D10: =D9/G9 -> 0.2500002813 | E10: =E9/D9 -> 0.10000045 | F10: =F9/D9 -> 0.89999955
I11: 비율
F12: 인건비 계상비율 | G12: =IF($G$4="아니오",IF($I$12>50%,"초과","가능"),"가능") -> 가능 | H12: 50%이내, 소프트웨어는 50%이상 가능 | I12: =($E$21+$E$31+$E$41)/$G$9 -> 0.1890001181
C13: 현금 | D13: 현물 | F13: 간접비 계상비율 | G13: =IF($I$13>10%,"초과","가능") -> 가능 | H13: 10%이내, 직접비(현물 및 위탁개발비 제외) | I13: =(C27+C37+C47)/(SUM(C21:C24)+SUM(C31:C34)+SUM(C41:C44)) -> 5.776399058e-05
B14: 1차년도 | C14: =SUM(C26:C27) -> 5243847 | D14: =SUM(D26:D27) -> 25000 | F14: 위탁연구비 계상비율 | G14: =IF($I$14>40%,"초과","가능") -> 가능 | H14: 40%이내, 직접비(현물포함) | I14: =(E25+E35+E45)/(E26+E36+E46) -> 0.009490282615
B15: 2차년도 | C15: =SUM(C36:C37) -> 5243847 | D15: =SUM(D36:D37) -> 25000 | F15: 시제품제작비 계상비율 | G15: =IF($I$15>50%,"초과","가능") -> 가능 | H15: 50%이내, 직접비(현물포함) | I15: =('1차년도'!AM2+'2차년도'!AM2+'3차년도'!AM2)/(E26+E36+E46) -> 0.001898056523
B16: 3차년도 | C16: =SUM(C46:C47) -> 5243847 | D16: =SUM(D46:D47) -> 25000 | F16: 외부전문기술활용비 계상비율 | G16: =IF($I$16>40%,"초과","가능") -> 가능 | H16: 40%이내, 직접비(현물포함) | I16: =('1차년도'!AN2+'2차년도'!AN2+'3차년도'!AN2)/(E26+E36+E46) -> 0.0009799665828
B17: 합계 | C17: =SUM(C14:C16) -> 15731541 | D17: =SUM(D14:D16) -> 75000
B19: 1차년도
C20: 현금 | D20: 현물 | E20: 합
B21: 1.1 인건비 | C21: ='1차년도'!D74+'1차년도 (2)'!D74 -> 143000 | D21: ='1차년도'!E74+'1차년도 (2)'!E74 -> 25000 | E21: ='1차년도'!F74+'1차년도 (2)'!F74 -> 168000
B22: 1.3 연구장비 | C22: ='1차년도'!D75+'1차년도 (2)'!D75 -> 5000000 | D22: ='1차년도'!E75+'1차년도 (2)'!E75 -> 0 | E22: ='1차년도'!F75+'1차년도 (2)'!F75 -> 5000000
B23: 1.4 연구재료비 | C23: ='1차년도'!D76+'1차년도 (2)'!D76 -> 10000 | D23: ='1차년도'!E76+'1차년도 (2)'!E76 -> 0 | E23: ='1차년도'!F76+'1차년도 (2)'!F76 -> 10000
B24: 1.5 연구활동비 | C24: ='1차년도'!D77+'1차년도 (2)'!D77 -> 40547 | D24: ='1차년도'!E77+'1차년도 (2)'!E77 -> 0 | E24: ='1차년도'!F77+'1차년도 (2)'!F77 -> 40547
B25: 1.7 위탁연구개발비 | C25: ='1차년도'!D78+'1차년도 (2)'!D78 -> 50000 | D25: ='1차년도'!E78+'1차년도 (2)'!E78 -> 0 | E25: ='1차년도'!F78+'1차년도 (2)'!F78 -> 50000
B26: 1. 직접비 | C26: =SUM(C21:C25) -> 5243547 | D26: =SUM(D21:D25) -> 25000 | E26: =SUM(E21:E25) -> 5268547
B27: 2. 간접비 | C27: ='1차년도'!D80+'1차년도 (2)'!D80 -> 300 | D27: ='1차년도'!E80+'1차년도 (2)'!E80 -> 0 | E27: ='1차년도'!F80+'1차년도 (2)'!F80 -> 300
B29: 2차년도
C30: 현금 | D30: 현물 | E30: 합
B31: 1.1 인건비 | C31: ='2차년도'!D74+'2차년도 (2)'!D74 -> 143000 | D31: ='2차년도'!E74+'2차년도 (2)'!E74 -> 25000 | E31: ='2차년도'!F74+'2차년도 (2)'!F74 -> 168000
B32: 1.3 연구장비 | C32: ='2차년도'!D75+'2차년도 (2)'!D75 -> 5000000 | D32: ='2차년도'!E75+'2차년도 (2)'!E75 -> 0 | E32: ='2차년도'!F75+'2차년도 (2)'!F75 -> 5000000
B33: 1.4 연구재료비 | C33: ='2차년도'!D76+'2차년도 (2)'!D76 -> 10000 | D33: ='2차년도'!E76+'2차년도 (2)'!E76 -> 0 | E33: ='2차년도'!F76+'2차년도 (2)'!F76 -> 10000
B34: 1.5 연구활동비 | C34: ='2차년도'!D77+'2차년도 (2)'!D77 -> 40547 | D34: ='2차년도'!E77+'2차년도 (2)'!E77 -> 0 | E34: ='2차년도'!F77+'2차년도 (2)'!F77 -> 40547
B35: 1.7 위탁연구개발비 | C35: ='2차년도'!D78+'2차년도 (2)'!D78 -> 50000 | D35: ='2차년도'!E78+'2차년도 (2)'!E78 -> 0 | E35: ='2차년도'!F78+'2차년도 (2)'!F78 -> 50000
B36: 1. 직접비 | C36: =SUM(C31:C35) -> 5243547 | D36: =SUM(D31:D35) -> 25000 | E36: =SUM(E31:E35) -> 5268547
B37: 2. 간접비 | C37: ='2차년도'!D80+'2차년도 (2)'!D80 -> 300 | D37: ='2차년도'!E80+'2차년도 (2)'!E80 -> 0 | E37: ='2차년도'!F80+'2차년도 (2)'!F80 -> 300
B39: 3차년도
C40: 현금 | D40: 현물 | E40: 합
B41: 1.1 인건비 | C41: ='3차년도'!D74+'3차년도 (2)'!D74 -> 143000 | D41: ='3차년도'!E74+'3차년도 (2)'!E74 -> 25000 | E41: ='3차년도'!F74+'3차년도 (2)'!F74 -> 168000
B42: 1.3 연구장비 | C42: ='3차년도'!D75+'3차년도 (2)'!D75 -> 5000000 | D42: ='3차년도'!E75+'3차년도 (2)'!E75 -> 0 | E42: ='3차년도'!F75+'3차년도 (2)'!F75 -> 5000000
B43: 1.4 연구재료비 | C43: ='3차년도'!D76+'3차년도 (2)'!D76 -> 10000 | D43: ='3차년도'!E76+'3차년도 (2)'!E76 -> 0 | E43: ='3차년도'!F76+'3차년도 (2)'!F76 -> 10000
B44: 1.5 연구활동비 | C44: ='3차년도'!D77+'3차년도 (2)'!D77 -> 40547 | D44: ='3차년도'!E77+'3차년도 (2)'!E77 -> 0 | E44: ='3차년도'!F77+'3차년도 (2)'!F77 -> 40547
B45: 1.7 위탁연구개발비 | C45: ='3차년도'!D78+'3차년도 (2)'!D78 -> 50000 | D45: ='3차년도'!E78+'3차년도 (2)'!E78 -> 0 | E45: ='3차년도'!F78+'3차년도 (2)'!F78 -> 50000
B46: 1. 직접비 | C46: =SUM(C41:C45) -> 5243547 | D46: =SUM(D41:D45) -> 25000 | E46: =SUM(E41:E45) -> 5268547
B47: 2. 간접비 | C47: ='3차년도'!D80+'3차년도 (2)'!D80 -> 300 | D47: ='3차년도'!E80+'3차년도 (2)'!E80 -> 0 | E47: ='3차년도'!F80+'3차년도 (2)'!F80 -> 300

Sheet 1.사업비 총괄(주관)
B2: 혁신기술 지원사업 사업비 기준 (단위 : 천원)
B3: 1) 정부지원금 75%, 민간부담금 25%
B4: 2) 민간 현금/현물 비율 (현금 10% 이상) | F4: 소프트웨어 개발 과제여부 (예/아니오) | G4: 아니오
B5: 연차 | C5: 정부지원금 | D5: 민간합계 | E5: 민간현금 | F5: 민간현물 | G5: 총사업비합계
B6: 1차년도 | C6: 666666 | D6: =E6+F6 -> 222223 | E6: 22223 | F6: 200000 | G6: =C6+D6 -> 888889
B7: 2차년도 | C7: 666666 | D7: =E7+F7 -> 222222 | E7: 22222 | F7: 200000 | G7: =C7+D7 -> 888888
B8: 3차년도 | C8: 666666 | D8: =E8+F8 -> 222222 | E8: 22222 | F8: 200000 | G8: =C8+D8 -> 888888
B9: 합계 | C9: =SUM(C6:C8) -> 1999998 | D9: =SUM(D6:D8) -> 666667 | E9: =SUM(E6:E8) -> 66667 | F9: =SUM(F6:F8) -> 600000 | G9: =SUM(G6:G8) -> 2666665
B10: % | C10: =C9/G9 -> 0.7499997187 | D10: =D9/G9 -> 0.2500002813 | E10: =E9/D9 -> 0.10000045 | F10: =F9/D9 -> 0.89999955
I11: 비율
F12: 인건비 계상비율 | G12: =IF($G$4="아니오",IF($I$12>50%,"초과","가능"),"가능") -> 가능 | H12: 50%이내, 소프트웨어는 50%이상 가능 | I12: =($E$21+$E$31+$E$41)/$G$9 -> 0.1890001181
C13: 현금 | D13: 현물 | F13: 간접비 계상비율 | G13: =IF($I$13>10%,"초과","가능") -> 가능 | H13: 10%이내, 직접비(현물 및 위탁개발비 제외) | I13: =(C27+C37+C47)/(SUM(C21:C24)+SUM(C31:C34)+SUM(C41:C44)) -> 5.776399058e-05
B14: 1차년도 | C14: =SUM(C26:C27) -> 5243847 | D14: =SUM(D26:D27) -> 25000 | F14: 위탁연구비 계상비율 | G14: =IF($I$14>40%,"초과","가능") -> 가능 | H14: 40%이내, 직접비(현물포함) | I14: =(E25+E35+E45)/(E26+E36+E46) -> 0.009490282615
B15: 2차년도 | C15: =SUM(C36:C37) -> 5243847 | D15: =SUM(D36:D37) -> 25000 | F15: 시제품제작비 계상비율 | G15: =IF($I$15>50%,"초과","가능") -> 가능 | H15: 50%이내, 직접비(현물포함) | I15: =('1차년도'!AM2+'2차년도'!AM2+'3차년도'!AM2)/(E26+E36+E46) -> 0.001898056523
B16: 3차년도 | C16: =SUM(C46:C47) -> 5243847 | D16: =SUM(D46:D47) -> 25000 | F16: 외부전문기술활용비 계상비율 | G16: =IF($I$16>40%,"초과","가능") -> 가능 | H16: 40%이내, 직접비(현물포함) | I16: =('1차년도'!AN2+'2차년도'!AN2+'3차년도'!AN2)/(E26+E36+E46) -> 0.0009799665828
B17: 합계 | C17: =SUM(C14:C16) -> 15731541 | D17: =SUM(D14:D16) -> 75000
B19: 1차년도
C20: 현금 | D20: 현물 | E20: 합
B21: 1.1 인건비 | C21: ='1차년도'!D74 -> 143000 | D21: ='1차년도'!E74 -> 25000 | E21: ='1차년도'!F74 -> 168000
B22: 1.3 연구장비 | C22: ='1차년도'!D75 -> 5000000 | D22: ='1차년도'!E75 -> 0 | E22: ='1차년도'!F75 -> 5000000
B23: 1.4 연구재료비 | C23: ='1차년도'!D76 -> 10000 | D23: ='1차년도'!E76 -> 0 | E23: ='1차년도'!F76 -> 10000
B24: 1.5 연구활동비 | C24: ='1차년도'!D77 -> 40547 | D24: ='1차년도'!E77 -> 0 | E24: ='1차년도'!F77 -> 40547
B25: 1.7 위탁연구개발비 | C25: ='1차년도'!D78 -> 50000 | D25: ='1차년도'!E78 -> 0 | E25: ='1차년도'!F78 -> 50000
B26: 1. 직접비 | C26: =SUM(C21:C25) -> 5243547 | D26: =SUM(D21:D25) -> 25000 | E26: =SUM(E21:E25) -> 5268547
B27: 2. 간접비 | C27: ='1차년도'!J62 -> 300 | D27: ='1차년도'!K62 -> 0 | E27: ='1차년도'!L62 -> 300
B29: 2차년도
C30: 현금 | D30: 현물 | E30: 합
B31: 1.1 인건비 | C31: ='2차년도'!D74 -> 143000 | D31: ='2차년도'!E74 -> 25000 | E31: ='2차년도'!F74 -> 168000
B32: 1.3 연구장비 | C32: ='2차년도'!D75 -> 5000000 | D32: ='2차년도'!E75 -> 0 | E32: ='2차년도'!F75 -> 5000000
B33: 1.4 연구재료비 | C33: ='2차년도'!D76 -> 10000 | D33: ='2차년도'!E76 -> 0 | E33: ='2차년도'!F76 -> 10000
B34: 1.5 연구활동비 | C34: ='2차년도'!D77 -> 40547 | D34: ='2차년도'!E77 -> 0 | E34: ='2차년도'!F77 -> 40547
B35: 1.7 위탁연구개발비 | C35: ='2차년도'!D78 -> 50000 | D35: ='2차년도'!E78 -> 0 | E35: ='2차년도'!F78 -> 50000
B36: 1. 직접비 | C36: =SUM(C31:C35) -> 5243547 | D36: =SUM(D31:D35) -> 25000 | E36: =SUM(E31:E35) -> 5268547
B37: 2. 간접비 | C37: ='1차년도'!J62 -> 300 | D37: ='1차년도'!K62 -> 0 | E37: ='1차년도'!L62 -> 300
B39: 3차년도
C40: 현금 | D40: 현물 | E40: 합
B41: 1.1 인건비 | C41: ='3차년도'!D74 -> 143000 | D41: ='3차년도'!E74 -> 25000 | E41: ='3차년도'!F74 -> 168000
B42: 1.3 연구장비 | C42: ='3차년도'!D75 -> 5000000 | D42: ='3차년도'!E75 -> 0 | E42: ='3차년도'!F75 -> 5000000
B43: 1.4 연구재료비 | C43: ='3차년도'!D76 -> 10000 | D43: ='3차년도'!E76 -> 0 | E43: ='3차년도'!F76 -> 10000
B44: 1.5 연구활동비 | C44: ='3차년도'!D77 -> 40547 | D44: ='3차년도'!E77 -> 0 | E44: ='3차년도'!F77 -> 40547
B45: 1.7 위탁연구개발비 | C45: ='3차년도'!D78 -> 50000 | D45: ='3차년도'!E78 -> 0 | E45: ='3차년도'!F78 -> 50000
B46: 1. 직접비 | C46: =SUM(C41:C45) -> 5243547 | D46: =SUM(D41:D45) -> 25000 | E46: =SUM(E41:E45) -> 5268547
B47: 2. 간접비 | C47: ='3차년도'!J62 -> 300 | D47: ='3차년도'!K62 -> 0 | E47: ='3차년도'!L62 -> 300

Sheet 1차년도
AM1: 시작품/시제품 제작경비 | AN1: 외부전문기술활용비
B2: 국방벤처 혁신기술 사업비소요명세서 자동계산 엑셀 (단위 : 천원) | AM2: =SUMIF(C18:I54,"시작품/시제품 제작경비",J18:J54) -> 10000 | AN2: =SUMIF(C18:I54,"외부전문기술활용비",J18:J54) -> 5163
B4: 구분 | D4: 참여인원 | E4: 직위 | F4: 연봉 (직접입력) | G4: 1개월인건비 | H4: 참여율 (직접입력) | I4: 참여기간 (직접입력) | J4: 현금(천원) | K4: 현물(천원) (직접입력) | L4: 합계
B5: 기존인력 인건비 | D5: 홍길동 1 | E5: 본부장 | F5: 60000 | G5: =F5/12 -> 5000 | H5: 0.5 | I5: 12 | J5: =L5-K5 -> 5000 | K5: 25000 | L5: =G5*H5*I5 -> 30000
D6: 홍길동 2 | E6: 팀장 | F6: 50000 | G6: =F6/12 -> 4166.666667 | H6: 0.5 | I6: 12 | J6: =L6-K6 -> 25000 | K6: 0 | L6: =G6*H6*I6 -> 25000
D7: 홍길동 3 | E7: 팀원 | F7: 40000 | G7: 3333.333333 | H7: 0.5 | I7: 12 | J7: 20000 | K7: 0 | L7: 20000
D8: 홍길동 4 | E8: 팀원 | F8: 30000 | G8: 2500 | H8: 0.5 | I8: 12 | J8: 15000 | K8: 0 | L8: 15000
D9: 홍길동 5 | E9: 팀원 | F9: 20000 | G9: 1666.666667 | H9: 0.5 | I9: 12 | J9: 10000 | K9: 0 | L9: 10000 | AZ9: 연구시설장비비 | BA9: 시약/재료구입비 | BB9: 지식재산 창출 활동비 | BC9: 인력지원비
D10: 기존인력 인건비합계 | J10: =SUM(J5:J9) -> 75000 | K10: =SUM(K5:K9) -> 25000 | L10: =SUM(L5:L9) -> 100000 | BA10: 시작품/시제품 제작경비 | BB10: 외부전문기술활용비 | BC10: 연구지원비
B11: 신규인력 인건비 | D11: 홍길동 6 | E11: 팀장 | F11: 50000 | G11: =F11/12 -> 4166.666667 | H11: 0.66 | I11: 12 | J11: =L11-K11 -> 33000 | K11: 0 | L11: =G11*H11*I11 -> 33000 | BB11: 회의비 | BC11: 성과활용지원비
D12: 홍길동 7 | E12: 팀원 | F12: 40000 | G12: 3333.333333 | H12: 0.5 | I12: 12 | J12: 20000 | K12: 0 | L12: =G12*H12*I12 -> 20000 | BB12: 국내여비
D13: 홍길동 8 | E13: 팀원 | F13: 30000 | G13: 2500 | H13: 0.5 | I13: 12 | J13: 15000 | K13: 0 | L13: 15000 | BB13: 국외여비
D14: 신규인력 인건비합계 | J14: =SUM(J11:J13) -> 68000 | K14: =SUM(K11:K13) -> 0 | L14: =SUM(L11:L13) -> 68000 | BB14: 소프트웨어활용비
B15: 인건비 전체 합계 | J15: =J10+J14 -> 143000 | K15: =K10+K14 -> 25000 | L15: =L10+L14 -> 168000 | BB15: 사무용품
BB16: 연구인력지원비
C17: 구분 | E17: 내역(품명) | G17: 규격 | H17: 수량 | I17: 단가 | J17: 현금(천원) | K17: 현물(천원) | L17: 합계 | BB17: 기타
B18: 연구시설/장비비 | C18: 연구시설장비비 | H18: 1 | I18: 0 | J18: =L18-K18 -> 0 | K18: 0 | L18: =H18*I18 -> 0 | BB18: 회계정산비용
J19: =L19-K19 -> 0 | K19: 0 | L19: =H19*I19 -> 0
J20: 0 | K20: 0 | L20: 0
C21: 연구시설장비비 | H21: 1 | I21: 5000000 | J21: 5000000 | K21: 0 | L21: 5000000
I22: 0 | J22: 0 | K22: 0 | L22: =H22*I22 -> 0
J23: =L23-K23 -> 0 | K23: 0 | L23: =H23*I23 -> 0
J24: 0 | K24: 0 | L24: 0
I25: 0 | J25: 0 | K25: 0 | L25: =H25*I25 -> 0
C26: 연구장비 합계 | J26: =SUM(J18:J25) -> 5000000 | K26: =SUM(K18:K25) -> 0 | L26: =SUM(L18:L25) -> 5000000
B27: 연구재료비 | C27: 시약/재료구입비 | H27: 1 | I27: 0 | J27: =L27-K27 -> 0 | K27: 0 | L27: =H27*I27 -> 0
C28: 시작품/시제품 제작경비 | H28: 1 | I28: 10000 | J28: 10000 | K28: 0 | L28: =H28*I28 -> 10000
J29: =L29-K29 -> 0 | K29: 0 | L29: =H29*I29 -> 0
J30: 0 | K30: 0 | L30: 0
J31: 0 | K31: 0 | L31: 0
J32: 0 | K32: 0 | L32: 0
J33: 0 | K33: 0 | L33: 0
J34: 0 | K34: 0 | L34: 0
J35: 0 | K35: 0 | L35: 0
J36: 0 | K36: 0 | L36: 0
J37: 0 | K37: 0 | L37: =H37*I37 -> 0
C38: 연구재료비 합계 | J38: =SUM(J27:J37) -> 10000 | K38: =SUM(K27:K37) -> 0 | L38: =SUM(L27:L37) -> 10000
B39: 연구활동비 | C39: 국외여비 | J39: =L39-K39 -> 0 | K39: 0 | L39: =H39*I39 -> 0
C40: 수용비 및 수수료 | E40: 위탁정산비용 | G40: 회 | H40: 1 | I40: 1067 | J40: =L40-K40 -> 1067 | K40: 0 | L40: =H40*I40 -> 1067
C41: 외부전문기술활용비 | E41: 공인인증시험비 | G41: 회 | H41: 1 | I41: =4933+230 -> 5163 | J41: =L41-K41 -> 5163 | K41: 0 | L41: =H41*I41 -> 5163
J42: 0 | K42: 0 | L42: 0
J43: 0 | K43: 0 | L43: 0
H44: 1 | I44: 20000 | J44: 20000 | K44: 0 | L44: 20000
J45: 0 | K45: 0 | L45: 0
J46: 0 | K46: 0 | L46: 0
J47: 0 | K47: 0 | L47: 0
J48: 0 | K48: 0 | L48: 0
J49: 0 | K49: 0 | L49: 0
J50: =L50-K50 -> 5163 | K50: 0 | L50: =H41*I41 -> 5163
C51: 회계정산비용(필수) | E51: 회계정산비용 | H51: 1 | I51: 9154 | J51: 9154 | K51: 0 | L51: =H51*I51 -> 9154
C52: 연구활동비 합계 | J52: =SUM(J39:J51) -> 40547 | K52: =SUM(K39:K51) -> 0 | L52: =SUM(L39:L51) -> 40547
B53: 위탁연구개발비 | C53: 위탁연구개발비 | H53: 1 | I53: 50000 | J53: =L53-K53 -> 50000 | K53: 0 | L53: =H53*I53 -> 50000
C54: 위탁연구개발비 합계 | J54: =SUM(J53:J53) -> 50000 | K54: =SUM(K53:K53) -> 0 | L54: =SUM(L53:L53) -> 50000
B55: 연구장비, 연구재료비, 연구활동비, 위탁연구개발비 합계 | J55: =SUM(J26,J54,J52,J38) -> 5100547 | K55: =SUM(K26,K54,K52,K38) -> 0 | L55: =SUM(L26,L54,L52,L38) -> 5100547
B56: 직접비(인건비 포함) 합계 | J56: =SUM(J15+J55) -> 5243547 | K56: =SUM(K15+K55) -> 25000 | L56: =SUM(L15+L55) -> 5268547
B58: 구분 | D58: 내역(품명) | G58: 규격 | H58: 수량 | I58: 단가 | J58: 현금(천원) | K58: 현물(천원) | L58: 합계
C59: 성과활용지원비 | G59: 회 | I59: 200 | J59: =L59-K59 -> 200 | K59: 0 | L59: =I59 -> 200
G60: 회 | I60: 100 | J60: 100 | K60: 0 | L60: =I60 -> 100
D61: 성과활용지원비 소계 | J61: =SUM(J59:J60) -> 300 | K61: =SUM(K59:K60) -> 0 | L61: 300
C62: 간접비 합계 | J62: =J61 -> 300 | K62: =K61 -> 0 | L62: =L61 -> 300
J64: 현금 | K64: 현물 | L64: 합계
B65: 직접비 합계 | J65: =J56 -> 5243547 | K65: =K56 -> 25000 | L65: =L56 -> 5268547
B66: 간접비 합계 | J66: =J62 -> 300 | K66: =K62 -> 0 | L66: =L62 -> 300
B67: 사업비합계 | J67: =SUM(J65:J66) -> 5243847 | K67: =SUM(K65:K66) -> 25000 | L67: 5268847
B70: 비 목 | D70: 현 금 | E70: 현 물 | F70: 계
B71: 1. 직접비 | D71: =D74+D75+D76+D77+D78 -> 5243547 | E71: =E74+E75+E76+E77+E78 -> 25000 | F71: =F74+F75+F76+F77+F78 -> 5268547
B72: 1.1 인건비 | C72: 1.1.1 기존인건비 | D72: =J10 -> 75000 | E72: =K10 -> 25000 | F72: =D72+E72 -> 100000
C73: 1.1.2 신규인건비 | D73: =J14 -> 68000 | E73: =K14 -> 0 | F73: 68000
B74: 인건비소계 | D74: =D72+D73 -> 143000 | E74: =E72+E73 -> 25000 | F74: 168000
B75: 1.3 연구장비 | D75: =J26 -> 5000000 | E75: =K26 -> 0 | F75: 5000000
B76: 1.4 연구재료비 | D76: =J38 -> 10000 | E76: =K38 -> 0 | F76: 10000
B77: 1.5 연구활동비 | D77: =J52 -> 40547 | E77: =K52 -> 0 | F77: 40547
B78: 1.7 위탁연구개발비 | D78: =J54 -> 50000 | E78: =K54 -> 0 | F78: 50000
B79: 2. 간접비 | D79: =D80 -> 300 | E79: =E80 -> 0 | F79: 300
B80: 2.1 성과활용지원비 | D80: =J61 -> 300 | E80: =K61 -> 0 | F80: 300
B81: 사업비합계 | D81: =D71+D79 -> 5243847 | E81: =E71+E79 -> 25000 | F81: 5268847

Sheet 2차년도
AM1: 시작품/시제품 제작경비 | AN1: 외부전문기술활용비
B2: 국방벤처 혁신기술 사업비소요명세서 자동계산 엑셀 (단위 : 천원) | AM2: =SUMIF(C18:I54,"시작품/시제품 제작경비",J18:J54) -> 10000 | AN2: =SUMIF(C18:I54,"외부전문기술활용비",J18:J54) -> 5163
B4: 구분 | D4: 참여인원 | E4: 직위 | F4: 연봉 (직접입력) | G4: 1개월인건비 | H4: 참여율 (직접입력) | I4: 참여기간 (직접입력) | J4: 현금(천원) | K4: 현물(천원) (직접입력) | L4: 합계
B5: 기존인력 인건비 | D5: 홍길동 1 | E5: 본부장 | F5: 60000 | G5: =F5/12 -> 5000 | H5: 0.5 | I5: 12 | J5: =L5-K5 -> 5000 | K5: 25000 | L5: =G5*H5*I5 -> 30000
D6: 홍길동 2 | E6: 팀장 | F6: 50000 | G6: =F6/12 -> 4166.666667 | H6: 0.5 | I6: 12 | J6: =L6-K6 -> 25000 | K6: 0 | L6: =G6*H6*I6 -> 25000
D7: 홍길동 3 | E7: 팀원 | F7: 40000 | G7: 3333.333333 | H7: 0.5 | I7: 12 | J7: 20000 | K7: 0 | L7: 20000
D8: 홍길동 4 | E8: 팀원 | F8: 30000 | G8: 2500 | H8: 0.5 | I8: 12 | J8: 15000 | K8: 0 | L8: 15000
D9: 홍길동 5 | E9: 팀원 | F9: 20000 | G9: 1666.666667 | H9: 0.5 | I9: 12 | J9: 10000 | K9: 0 | L9: 10000 | AZ9: 연구시설장비비 | BA9: 시약/재료구입비 | BB9: 지식재산 창출 활동비 | BC9: 인력지원비
D10: 기존인력 인건비합계 | J10: =SUM(J5:J9) -> 75000 | K10: =SUM(K5:K9) -> 25000 | L10: =SUM(L5:L9) -> 100000 | BA10: 시작품/시제품 제작경비 | BB10: 외부전문기술활용비 | BC10: 연구지원비
B11: 신규인력 인건비 | D11: 홍길동 6 | E11: 팀장 | F11: 50000 | G11: =F11/12 -> 4166.666667 | H11: 0.66 | I11: 12 | J11: =L11-K11 -> 33000 | K11: 0 | L11: =G11*H11*I11 -> 33000 | BB11: 회의비 | BC11: 성과활용지원비
D12: 홍길동 7 | E12: 팀원 | F12: 40000 | G12: 3333.333333 | H12: 0.5 | I12: 12 | J12: 20000 | K12: 0 | L12: =G12*H12*I12 -> 20000 | BB12: 국내여비
D13: 홍길동 8 | E13: 팀원 | F13: 30000 | G13: 2500 | H13: 0.5 | I13: 12 | J13: 15000 | K13: 0 | L13: 15000 | BB13: 국외여비
D14: 신규인력 인건비합계 | J14: =SUM(J11:J13) -> 68000 | K14: =SUM(K11:K13) -> 0 | L14: =SUM(L11:L13) -> 68000 | BB14: 소프트웨어활용비
B15: 인건비 전체 합계 | J15: =J10+J14 -> 143000 | K15: =K10+K14 -> 25000 | L15: =L10+L14 -> 168000 | BB15: 사무용품
BB16: 연구인력지원비
C17: 구분 | E17: 내역(품명) | G17: 규격 | H17: 수량 | I17: 단가 | J17: 현금(천원) | K17: 현물(천원) | L17: 합계 | BB17: 기타
B18: 연구시설/장비비 | C18: 연구시설장비비 | H18: 1 | I18: 0 | J18: =L18-K18 -> 0 | K18: 0 | L18: =H18*I18 -> 0 | BB18: 회계정산비용
J19: 0 | K19: 0 | L19: =H19*I19 -> 0
J20: 0 | K20: 0 | L20: 0
C21: 연구시설장비비 | H21: 1 | I21: 5000000 | J21: 5000000 | K21: 0 | L21: 5000000
I22: 0 | J22: 0 | K22: 0 | L22: =H22*I22 -> 0
J23: 0 | K23: 0 | L23: =H23*I23 -> 0
J24: 0 | K24: 0 | L24: 0
I25: 0 | J25: 0 | K25: 0 | L25: 0
C26: 연구장비 합계 | J26: =SUM(J18:J25) -> 5000000 | K26: =SUM(K18:K25) -> 0 | L26: =SUM(L18:L25) -> 5000000
B27: 연구재료비 | C27: 시약/재료구입비 | H27: 1 | I27: 0 | J27: =L27-K27 -> 0 | K27: 0 | L27: =H27*I27 -> 0
C28: 시작품/시제품 제작경비 | H28: 1 | I28: 10000 | J28: 10000 | K28: 0 | L28: =H28*I28 -> 10000
J29: 0 | K29: 0 | L29: =H29*I29 -> 0
J30: 0 | K30: 0 | L30: 0
J31: 0 | K31: 0 | L31: 0
J32: 0 | K32: 0 | L32: 0
J33: 0 | K33: 0 | L33: 0
J34: 0 | K34: 0 | L34: 0
J35: 0 | K35: 0 | L35: 0
J36: 0 | K36: 0 | L36: 0
J37: 0 | K37: 0 | L37: 0
C38: 연구재료비 합계 | J38: =SUM(J27:J37) -> 10000 | K38: =SUM(K27:K37) -> 0 | L38: =SUM(L27:L37) -> 10000
B39: 연구활동비 | C39: 국외여비 | J39: =L39-K39 -> 0 | K39: 0 | L39: =H39*I39 -> 0
C40: 수용비 및 수수료 | E40: 위탁정산비용 | G40: 회 | H40: 1 | I40: 1067 | J40: =L40-K40 -> 1067 | K40: 0 | L40: =H40*I40 -> 1067
C41: 외부전문기술활용비 | E41: 공인인증시험비 | G41: 회 | H41: 1 | I41: =4933+230 -> 5163 | J41: 5163 | K41: 0 | L41: =H41*I41 -> 5163
J42: 0 | K42: 0 | L42: 0
J43: 0 | K43: 0 | L43: 0
H44: 1 | I44: 20000 | J44: 20000 | K44: 0 | L44: 20000
J45: 0 | K45: 0 | L45: 0
J46: 0 | K46: 0 | L46: 0
J47: 0 | K47: 0 | L47: 0
J48: 0 | K48: 0 | L48: 0
J49: 0 | K49: 0 | L49: 0
J50: =L50-K50 -> 5163 | K50: 0 | L50: =H41*I41 -> 5163
C51: 회계정산비용(필수) | E51: 회계정산비용 | H51: 1 | I51: 9154 | J51: 9154 | K51: 0 | L51: =H51*I51 -> 9154
C52: 연구활동비 합계 | J52: =SUM(J39:J51) -> 40547 | K52: =SUM(K39:K51) -> 0 | L52: =SUM(L39:L51) -> 40547
B53: 위탁연구개발비 | C53: 위탁연구개발비 | H53: 1 | I53: 50000 | J53: =L53-K53 -> 50000 | K53: 0 | L53: =H53*I53 -> 50000
C54: 위탁연구개발비 합계 | J54: =SUM(J53:J53) -> 50000 | K54: =SUM(K53:K53) -> 0 | L54: =SUM(L53:L53) -> 50000
B55: 연구장비, 연구재료비, 연구활동비, 위탁연구개발비 합계 | J55: =SUM(J26,J54,J52,J38) -> 5100547 | K55: =SUM(K26,K54,K52,K38) -> 0 | L55: =SUM(L26,L54,L52,L38) -> 5100547
B56: 직접비(인건비 포함) 합계 | J56: =SUM(J15+J55) -> 5243547 | K56: =SUM(K15+K55) -> 25000 | L56: =SUM(L15+L55) -> 5268547
B58: 구분 | D58: 내역(품명) | G58: 규격 | H58: 수량 | I58: 단가 | J58: 현금(천원) | K58: 현물(천원) | L58: 합계
C59: 성과활용지원비 | G59: 회 | I59: 200 | J59: =L59-K59 -> 200 | K59: 0 | L59: =I59 -> 200
G60: 회 | I60: 100 | J60: 100 | K60: 0 | L60: =I60 -> 100
D61: 성과활용지원비 소계 | J61: =SUM(J59:J60) -> 300 | K61: =SUM(K59:K60) -> 0 | L61: 300
C62: 간접비 합계 | J62: =J61 -> 300 | K62: =K61 -> 0 | L62: =L61 -> 300
J64: 현금 | K64: 현물 | L64: 합계
B65: 직접비 합계 | J65: =J56 -> 5243547 | K65: =K56 -> 25000 | L65: =L56 -> 5268547
B66: 간접비 합계 | J66: =J62 -> 300 | K66: =K62 -> 0 | L66: =L62 -> 300
B67: 사업비합계 | J67: =SUM(J65:J66) -> 5243847 | K67: =SUM(K65:K66) -> 25000 | L67: 5268847
B70: 비 목 | D70: 현 금 | E70: 현 물 | F70: 계
B71: 1. 직접비 | D71: =D74+D75+D76+D77+D78 -> 5243547 | E71: =E74+E75+E76+E77+E78 -> 25000 | F71: =F74+F75+F76+F77+F78 -> 5268547
B72: 1.1 인건비 | C72: 1.1.1 기존인건비 | D72: =J10 -> 75000 | E72: =K10 -> 25000 | F72: =D72+E72 -> 100000
C73: 1.1.2 신규인건비 | D73: =J14 -> 68000 | E73: =K14 -> 0 | F73: 68000
B74: 인건비소계 | D74: =D72+D73 -> 143000 | E74: =E72+E73 -> 25000 | F74: 168000
B75: 1.3 연구장비 | D75: =J26 -> 5000000 | E75: =K26 -> 0 | F75: 5000000
B76: 1.4 연구재료비 | D76: =J38 -> 10000 | E76: =K38 -> 0 | F76: 10000
B77: 1.5 연구활동비 | D77: =J52 -> 40547 | E77: =K52 -> 0 | F77: 40547
B78: 1.7 위탁연구개발비 | D78: =J54 -> 50000 | E78: =K54 -> 0 | F78: 50000
B79: 2. 간접비 | D79: =D80 -> 300 | E79: =E80 -> 0 | F79: 300
B80: 2.1 성과활용지원비 | D80: =J61 -> 300 | E80: =K61 -> 0 | F80: =D80+E80 -> 300
B81: 사업비합계 | D81: =D71+D79 -> 5243847 | E81: =E71+E79 -> 25000 | F81: 5268847

Sheet 3차년도
AM1: 시작품/시제품 제작경비 | AN1: 외부전문기술활용비
B2: 국방벤처 혁신기술 사업비소요명세서 자동계산 엑셀 (단위 : 천원) | AM2: =SUMIF(C18:I54,"시작품/시제품 제작경비",J18:J54) -> 10000 | AN2: =SUMIF(C18:I54,"외부전문기술활용비",J18:J54) -> 5163
B4: 구분 | D4: 참여인원 | E4: 직위 | F4: 연봉 (직접입력) | G4: 1개월인건비 | H4: 참여율 (직접입력) | I4: 참여기간 (직접입력) | J4: 현금(천원) | K4: 현물(천원) (직접입력) | L4: 합계
B5: 기존인력 인건비 | D5: 홍길동 1 | E5: 본부장 | F5: 60000 | G5: =F5/12 -> 5000 | H5: 0.5 | I5: 12 | J5: =L5-K5 -> 5000 | K5: 25000 | L5: =G5*H5*I5 -> 30000
D6: 홍길동 2 | E6: 팀장 | F6: 50000 | G6: =F6/12 -> 4166.666667 | H6: 0.5 | I6: 12 | J6: =L6-K6 -> 25000 | K6: 0 | L6: =G6*H6*I6 -> 25000
D7: 홍길동 3 | E7: 팀원 | F7: 40000 | G7: 3333.333333 | H7: 0.5 | I7: 12 | J7: 20000 | K7: 0 | L7: 20000
D8: 홍길동 4 | E8: 팀원 | F8: 30000 | G8: 2500 | H8: 0.5 | I8: 12 | J8: 15000 | K8: 0 | L8: 15000
D9: 홍길동 5 | E9: 팀원 | F9: 20000 | G9: 1666.666667 | H9: 0.5 | I9: 12 | J9: 10000 | K9: 0 | L9: 10000 | AZ9: 연구시설장비비 | BA9: 시약/재료구입비 | BB9: 지식재산 창출 활동비 | BC9: 인력지원비
D10: 기존인력 인건비합계 | J10: =SUM(J5:J9) -> 75000 | K10: =SUM(K5:K9) -> 25000 | L10: =SUM(L5:L9) -> 100000 | BA10: 시작품/시제품 제작경비 | BB10: 외부전문기술활용비 | BC10: 연구지원비
B11: 신규인력 인건비 | D11: 홍길동 6 | E11: 팀장 | F11: 50000 | G11: =F11/12 -> 4166.666667 | H11: 0.66 | I11: 12 | J11: =L11-K11 -> 33000 | K11: 0 | L11: =G11*H11*I11 -> 33000 | BB11: 회의비 | BC11: 성과활용지원비
D12: 홍길동 7 | E12: 팀원 | F12: 40000 | G12: 3333.333333 | H12: 0.5 | I12: 12 | J12: 20000 | K12: 0 | L12: =G12*H12*I12 -> 20000 | BB12: 국내여비
D13: 홍길동 8 | E13: 팀원 | F13: 30000 | G13: 2500 | H13: 0.5 | I13: 12 | J13: 15000 | K13: 0 | L13: 15000 | BB13: 국외여비
D14: 신규인력 인건비합계 | J14: =SUM(J11:J13) -> 68000 | K14: =SUM(K11:K13) -> 0 | L14: =SUM(L11:L13) -> 68000 | BB14: 소프트웨어활용비
B15: 인건비 전체 합계 | J15: =J10+J14 -> 143000 | K15: =K10+K14 -> 25000 | L15: =L10+L14 -> 168000 | BB15: 사무용품
BB16: 연구인력지원비
C17: 구분 | E17: 내역(품명) | G17: 규격 | H17: 수량 | I17: 단가 | J17: 현금(천원) | K17: 현물(천원) | L17: 합계 | BB17: 기타
B18: 연구시설/장비비 | C18: 연구시설장비비 | H18: 1 | I18: 0 | J18: =L18-K18 -> 0 | K18: 0 | L18: =H18*I18 -> 0 | BB18: 회계정산비용
J19: 0 | K19: 0 | L19: =H19*I19 -> 0
J20: 0 | K20: 0 | L20: 0
C21: 연구시설장비비 | H21: 1 | I21: 5000000 | J21: 5000000 | K21: 0 | L21: 5000000
I22: 0 | J22: 0 | K22: 0 | L22: =H22*I22 -> 0
J23: 0 | K23: 0 | L23: =H23*I23 -> 0
J24: 0 | K24: 0 | L24: 0
I25: 0 | J25: 0 | K25: 0 | L25: 0
C26: 연구장비 합계 | J26: =SUM(J18:J25) -> 5000000 | K26: =SUM(K18:K25) -> 0 | L26: =SUM(L18:L25) -> 5000000
B27: 연구재료비 | C27: 시약/재료구입비 | H27: 1 | I27: 0 | J27: =L27-K27 -> 0 | K27: 0 | L27: =H27*I27 -> 0
C28: 시작품/시제품 제작경비 | H28: 1 | I28: 10000 | J28: 10000 | K28: 0 | L28: =H28*I28 -> 10000
J29: 0 | K29: 0 | L29: =H29*I29 -> 0
J30: 0 | K30: 0 | L30: 0
J31: 0 | K31: 0 | L31: 0
J32: 0 | K32: 0 | L32: 0
J33: 0 | K33: 0 | L33: 0
J34: 0 | K34: 0 | L34: 0
J35: 0 | K35: 0 | L35: 0
J36: 0 | K36: 0 | L36: 0
J37: 0 | K37: 0 | L37: 0
C38: 연구재료비 합계 | J38: =SUM(J27:J37) -> 10000 | K38: =SUM(K27:K37) -> 0 | L38: =SUM(L27:L37) -> 10000
B39: 연구활동비 | C39: 국외여비 | J39: =L39-K39 -> 0 | K39: 0 | L39: =H39*I39 -> 0
C40: 수용비 및 수수료 | E40: 위탁정산비용 | G40: 회 | H40: 1 | I40: 1067 | J40: =L40-K40 -> 1067 | K40: 0 | L40: =H40*I40 -> 1067
C41: 외부전문기술활용비 | E41: 공인인증시험비 | G41: 회 | H41: 1 | I41: =4933+230 -> 5163 | J41: 5163 | K41: 0 | L41: =H41*I41 -> 5163
J42: 0 | K42: 0 | L42: 0
J43: 0 | K43: 0 | L43: 0
H44: 1 | I44: 20000 | J44: 20000 | K44: 0 | L44: 20000
J45: 0 | K45: 0 | L45: 0
J46: 0 | K46: 0 | L46: 0
J47: 0 | K47: 0 | L47: 0
J48: 0 | K48: 0 | L48: 0
J49: 0 | K49: 0 | L49: 0
J50: =L50-K50 -> 5163 | K50: 0 | L50: =H41*I41 -> 5163
C51: 회계정산비용(필수) | E51: 회계정산비용 | H51: 1 | I51: 9154 | J51: 9154 | K51: 0 | L51: =H51*I51 -> 9154
C52: 연구활동비 합계 | J52: =SUM(J39:J51) -> 40547 | K52: =SUM(K39:K51) -> 0 | L52: =SUM(L39:L51) -> 40547
B53: 위탁연구개발비 | C53: 위탁연구개발비 | H53: 1 | I53: 50000 | J53: =L53-K53 -> 50000 | K53: 0 | L53: =H53*I53 -> 50000
C54: 위탁연구개발비 합계 | J54: =SUM(J53:J53) -> 50000 | K54: =SUM(K53:K53) -> 0 | L54: =SUM(L53:L53) -> 50000
B55: 연구장비, 연구재료비, 연구활동비, 위탁연구개발비 합계 | J55: =SUM(J26,J54,J52,J38) -> 5100547 | K55: =SUM(K26,K54,K52,K38) -> 0 | L55: =SUM(L26,L54,L52,L38) -> 5100547
B56: 직접비(인건비 포함) 합계 | J56: =SUM(J15+J55) -> 5243547 | K56: =SUM(K15+K55) -> 25000 | L56: =SUM(L15+L55) -> 5268547
B58: 구분 | D58: 내역(품명) | G58: 규격 | H58: 수량 | I58: 단가 | J58: 현금(천원) | K58: 현물(천원) | L58: 합계
C59: 성과활용지원비 | G59: 회 | I59: 200 | J59: =L59-K59 -> 200 | K59: 0 | L59: =I59 -> 200
G60: 회 | I60: 100 | J60: 100 | K60: 0 | L60: =I60 -> 100
D61: 성과활용지원비 소계 | J61: =SUM(J59:J60) -> 300 | K61: =SUM(K59:K60) -> 0 | L61: 300
C62: 간접비 합계 | J62: =J61 -> 300 | K62: =K61 -> 0 | L62: =L61 -> 300
J64: 현금 | K64: 현물 | L64: 합계
B65: 직접비 합계 | J65: =J56 -> 5243547 | K65: =K56 -> 25000 | L65: =L56 -> 5268547
B66: 간접비 합계 | J66: =J62 -> 300 | K66: =K62 -> 0 | L66: =L62 -> 300
B67: 사업비합계 | J67: =SUM(J65:J66) -> 5243847 | K67: =SUM(K65:K66) -> 25000 | L67: 5268847
B70: 비 목 | D70: 현 금 | E70: 현 물 | F70: 계
B71: 1. 직접비 | D71: =D74+D75+D76+D77+D78 -> 5243547 | E71: =E74+E75+E76+E77+E78 -> 25000 | F71: =F74+F75+F76+F77+F78 -> 5268547
B72: 1.1 인건비 | C72: 1.1.1 기존인건비 | D72: =J10 -> 75000 | E72: =K10 -> 25000 | F72: =D72+E72 -> 100000
C73: 1.1.2 신규인건비 | D73: =J14 -> 68000 | E73: =K14 -> 0 | F73: 68000
B74: 인건비소계 | D74: =D72+D73 -> 143000 | E74: =E72+E73 -> 25000 | F74: 168000
B75: 1.3 연구장비 | D75: =J26 -> 5000000 | E75: =K26 -> 0 | F75: 5000000
B76: 1.4 연구재료비 | D76: =J38 -> 10000 | E76: =K38 -> 0 | F76: 10000
B77: 1.5 연구활동비 | D77: =J52 -> 40547 | E77: =K52 -> 0 | F77: 40547
B78: 1.7 위탁연구개발비 | D78: =J54 -> 50000 | E78: =K54 -> 0 | F78: 50000
B79: 2. 간접비 | D79: =D80 -> 300 | E79: =E80 -> 0 | F79: 300
B80: 2.1 성과활용지원비 | D80: =J61 -> 300 | E80: =K61 -> 0 | F80: =D80+E80 -> 300
B81: 사업비합계 | D81: =D71+D79 -> 5243847 | E81: =E71+E79 -> 25000 | F81: 5268847

Sheet 1.사업비 총괄(공동)
B2: 혁신기술 지원사업 사업비 기준 (단위 : 천원)
B3: 1) 정부지원금 75%, 민간부담금 25%
B4: 2) 민간 현금/현물 비율 (현금 10% 이상) | F4: 소프트웨어 개발 과제여부 (예/아니오) | G4: 아니오
B5: 연차 | C5: 정부지원금 | D5: 민간합계 | E5: 민간현금 | F5: 민간현물 | G5: 총사업비합계
B6: 1차년도 | C6: 0 | D6: =E6+F6 -> 0 | E6: 0 | F6: 0 | G6: =C6+D6 -> 0
B7: 2차년도 | C7: 0 | D7: =E7+F7 -> 0 | E7: 0 | F7: 0 | G7: =C7+D7 -> 0
B8: 3차년도 | C8: 0 | D8: =E8+F8 -> 0 | E8: 0 | F8: 0 | G8: =C8+D8 -> 0
B9: 합계 | C9: =SUM(C6:C8) -> 0 | D9: =SUM(D6:D8) -> 0 | E9: =SUM(E6:E8) -> 0 | F9: =SUM(F6:F8) -> 0 | G9: =SUM(G6:G8) -> 0
B10: % | C10: =C9/G9 ->  | D10: =D9/G9 ->  | E10: =E9/D9 ->  | F10: =F9/D9 -> 
I11: 비율
F12: 인건비 계상비율 | G12: =IF($G$4="아니오",IF($I$12>50%,"초과","가능"),"가능") ->  | H12: 50%이내, 소프트웨어는 50%이상 가능 | I12: =($E$21+$E$31+$E$41)/$G$9 -> 
C13: 현금 | D13: 현물 | F13: 간접비 계상비율 | G13: =IF($I$13>10%,"초과","가능") ->  | H13: 10%이내, 직접비(현물 및 위탁개발비 제외) | I13: =(C27+C37+C47)/(SUM(C21:C24)+SUM(C31:C34)+SUM(C41:C44)) -> 
B14: 1차년도 | C14: =SUM(C26:C27) -> 0 | D14: =SUM(D26:D27) -> 0 | F14: 위탁연구비 계상비율 | G14: =IF($I$14>40%,"초과","가능") ->  | H14: 40%이내, 직접비(현물포함) | I14: =(E25+E35+E45)/(E26+E36+E46) -> 
B15: 2차년도 | C15: =SUM(C36:C37) -> 0 | D15: =SUM(D36:D37) -> 0 | F15: 시제품제작비 계상비율 | G15: =IF($I$15>50%,"초과","가능") ->  | H15: 50%이내, 직접비(현물포함) | I15: =('1차년도 (2)'!AM2+'2차년도 (2)'!AM2+'3차년도 (2)'!AM2)/(E26+E36+E46) -> 
B16: 3차년도 | C16: =SUM(C46:C47) -> 0 | D16: =SUM(D46:D47) -> 0 | F16: 외부전문기술활용비 계상비율 | G16: =IF($I$16>40%,"초과","가능") ->  | H16: 40%이내, 직접비(현물포함) | I16: =('1차년도 (2)'!AN2+'2차년도 (2)'!AN2+'3차년도 (2)'!AN2)/(E26+E36+E46) -> 
B17: 합계 | C17: =SUM(C14:C16) -> 0 | D17: =SUM(D14:D16) -> 0
B19: 1차년도
C20: 현금 | D20: 현물 | E20: 합
B21: 1.1 인건비 | C21: ='1차년도 (2)'!D74 -> 0 | D21: ='1차년도 (2)'!E74 -> 0 | E21: ='1차년도 (2)'!F74 -> 0
B22: 1.3 연구장비 | C22: ='1차년도 (2)'!D75 -> 0 | D22: ='1차년도 (2)'!E75 -> 0 | E22: ='1차년도 (2)'!F75 -> 0
B23: 1.4 연구재료비 | C23: ='1차년도 (2)'!D76 -> 0 | D23: ='1차년도 (2)'!E76 -> 0 | E23: ='1차년도 (2)'!F76 -> 0
B24: 1.5 연구활동비 | C24: ='1차년도 (2)'!D77 -> 0 | D24: ='1차년도 (2)'!E77 -> 0 | E24: ='1차년도 (2)'!F77 -> 0
B25: 1.7 위탁연구개발비 | C25: ='1차년도 (2)'!D78 -> 0 | D25: ='1차년도 (2)'!E78 -> 0 | E25: ='1차년도 (2)'!F78 -> 0
B26: 1. 직접비 | C26: =SUM(C21:C25) -> 0 | D26: =SUM(D21:D25) -> 0 | E26: =SUM(E21:E25) -> 0
B27: 2. 간접비 | C27: ='1차년도 (2)'!J62 -> 0 | D27: ='1차년도 (2)'!K62 -> 0 | E27: ='1차년도 (2)'!L62 -> 0
B29: 2차년도
C30: 현금 | D30: 현물 | E30: 합
B31: 1.1 인건비 | C31: ='2차년도 (2)'!D74 -> 0 | D31: ='2차년도 (2)'!E74 -> 0 | E31: ='2차년도 (2)'!F74 -> 0
B32: 1.3 연구장비 | C32: ='2차년도 (2)'!D75 -> 0 | D32: ='2차년도 (2)'!E75 -> 0 | E32: ='2차년도 (2)'!F75 -> 0
B33: 1.4 연구재료비 | C33: ='2차년도 (2)'!D76 -> 0 | D33: ='2차년도 (2)'!E76 -> 0 | E33: ='2차년도 (2)'!F76 -> 0
B34: 1.5 연구활동비 | C34: ='2차년도 (2)'!D77 -> 0 | D34: ='2차년도 (2)'!E77 -> 0 | E34: ='2차년도 (2)'!F77 -> 0
B35: 1.7 위탁연구개발비 | C35: ='2차년도 (2)'!D78 -> 0 | D35: ='2차년도 (2)'!E78 -> 0 | E35: ='2차년도 (2)'!F78 -> 0
B36: 1. 직접비 | C36: =SUM(C31:C35) -> 0 | D36: =SUM(D31:D35) -> 0 | E36: =SUM(E31:E35) -> 0
B37: 2. 간접비 | C37: ='1차년도 (2)'!J72 -> 0 | D37: ='1차년도 (2)'!K72 -> 0 | E37: ='1차년도 (2)'!L72 -> 0
B39: 3차년도
C40: 현금 | D40: 현물 | E40: 합
B41: 1.1 인건비 | C41: ='3차년도 (2)'!D74 -> 0 | D41: ='3차년도 (2)'!E74 -> 0 | E41: ='3차년도 (2)'!F74 -> 0
B42: 1.3 연구장비 | C42: ='3차년도 (2)'!D75 -> 0 | D42: ='3차년도 (2)'!E75 -> 0 | E42: ='3차년도 (2)'!F75 -> 0
B43: 1.4 연구재료비 | C43: ='3차년도 (2)'!D76 -> 0 | D43: ='3차년도 (2)'!E76 -> 0 | E43: ='3차년도 (2)'!F76 -> 0
B44: 1.5 연구활동비 | C44: ='3차년도 (2)'!D77 -> 0 | D44: ='3차년도 (2)'!E77 -> 0 | E44: ='3차년도 (2)'!F77 -> 0
B45: 1.7 위탁연구개발비 | C45: ='3차년도 (2)'!D78 -> 0 | D45: ='3차년도 (2)'!E78 -> 0 | E45: ='3차년도 (2)'!F78 -> 0
B46: 1. 직접비 | C46: =SUM(C41:C45) -> 0 | D46: =SUM(D41:D45) -> 0 | E46: =SUM(E41:E45) -> 0
B47: 2. 간접비 | C47: ='1차년도 (2)'!J80 -> 0 | D47: ='1차년도 (2)'!K80 -> 0 | E47: ='1차년도 (2)'!L80 -> 0

Sheet 1차년도 (2)
AM1: 시작품/시제품 제작경비 | AN1: 외부전문기술활용비
B2: 국방벤처 혁신기술 사업비소요명세서 자동계산 엑셀 (단위 : 천원) | AM2: =SUMIF(C18:I54,"시작품/시제품 제작경비",J18:J54) -> 0 | AN2: =SUMIF(C18:I54,"외부전문기술활용비",J18:J54) -> 0
B4: 구분 | D4: 참여인원 | E4: 직위 | F4: 연봉 (직접입력) | G4: 1개월인건비 | H4: 참여율 (직접입력) | I4: 참여기간 (직접입력) | J4: 현금(천원) | K4: 현물(천원) (직접입력) | L4: 합계
B5: 기존인력 인건비 | D5: 홍길동 1 | E5: 본부장 | F5: 60000 | G5: =F5/12 -> 5000 | I5: 12 | J5: =L5-K5 -> 0 | L5: =G5*H5*I5 -> 0
D6: 홍길동 2 | E6: 팀장 | F6: 50000 | G6: =F6/12 -> 4166.666667 | I6: 12 | J6: =L6-K6 -> 0 | K6: 0 | L6: =G6*H6*I6 -> 0
D7: 홍길동 3 | E7: 팀원 | F7: 40000 | G7: 3333.333333 | I7: 12 | J7: 0 | K7: 0 | L7: 0
D8: 홍길동 4 | E8: 팀원 | F8: 30000 | G8: 2500 | I8: 12 | J8: 0 | K8: 0 | L8: 0
D9: 홍길동 5 | E9: 팀원 | F9: 20000 | G9: 1666.666667 | I9: 12 | J9: 0 | K9: 0 | L9: 0 | AZ9: 연구시설장비비 | BA9: 시약/재료구입비 | BB9: 지식재산 창출 활동비 | BC9: 인력지원비
D10: 기존인력 인건비합계 | J10: =SUM(J5:J9) -> 0 | K10: =SUM(K5:K9) -> 0 | L10: =SUM(L5:L9) -> 0 | BA10: 시작품/시제품 제작경비 | BB10: 외부전문기술활용비 | BC10: 연구지원비
B11: 신규인력 인건비 | D11: 홍길동 6 | E11: 팀장 | F11: 50000 | G11: =F11/12 -> 4166.666667 | I11: 12 | J11: =L11-K11 -> 0 | K11: 0 | L11: =G11*H11*I11 -> 0 | BB11: 회의비 | BC11: 성과활용지원비
D12: 홍길동 7 | E12: 팀원 | F12: 40000 | G12: 3333.333333 | I12: 12 | J12: 0 | K12: 0 | L12: =G12*H12*I12 -> 0 | BB12: 국내여비
D13: 홍길동 8 | E13: 팀원 | F13: 30000 | G13: 2500 | I13: 12 | J13: 0 | K13: 0 | L13: 0 | BB13: 국외여비
D14: 신규인력 인건비합계 | J14: =SUM(J11:J13) -> 0 | K14: =SUM(K11:K13) -> 0 | L14: =SUM(L11:L13) -> 0 | BB14: 소프트웨어활용비
B15: 인건비 전체 합계 | J15: =J10+J14 -> 0 | K15: =K10+K14 -> 0 | L15: =L10+L14 -> 0 | BB15: 사무용품
BB16: 연구인력지원비
C17: 구분 | E17: 내역(품명) | G17: 규격 | H17: 수량 | I17: 단가 | J17: 현금(천원) | K17: 현물(천원) | L17: 합계 | BB17: 기타
B18: 연구시설/장비비 | C18: 연구시설장비비 | H18: 1 | I18: 0 | J18: =L18-K18 -> 0 | K18: 0 | L18: =H18*I18 -> 0 | BB18: 회계정산비용
J19: 0 | K19: 0 | L19: =H19*I19 -> 0
J20: 0 | K20: 0 | L20: 0
C21: 연구시설장비비 | H21: 1 | J21: 0 | K21: 0 | L21: 0
I22: 0 | J22: 0 | K22: 0 | L22: =H22*I22 -> 0
J23: 0 | K23: 0 | L23: =H23*I23 -> 0
J24: 0 | K24: 0 | L24: 0
I25: 0 | J25: 0 | K25: 0 | L25: 0
C26: 연구장비 합계 | J26: =SUM(J18:J25) -> 0 | K26: =SUM(K18:K25) -> 0 | L26: =SUM(L18:L25) -> 0
B27: 연구재료비 | C27: 시약/재료구입비 | J27: =L27-K27 -> 0 | K27: 0 | L27: =H27*I27 -> 0
C28: 시작품/시제품 제작경비 | J28: 0 | K28: 0 | L28: =H28*I28 -> 0
J29: 0 | K29: 0 | L29: =H29*I29 -> 0
J30: 0 | K30: 0 | L30: 0
J31: 0 | K31: 0 | L31: 0
J32: 0 | K32: 0 | L32: 0
J33: 0 | K33: 0 | L33: 0
J34: 0 | K34: 0 | L34: 0
J35: 0 | K35: 0 | L35: 0
J36: 0 | K36: 0 | L36: 0
J37: 0 | K37: 0 | L37: 0
C38: 연구재료비 합계 | J38: =SUM(J27:J37) -> 0 | K38: =SUM(K27:K37) -> 0 | L38: =SUM(L27:L37) -> 0
B39: 연구활동비 | C39: 국외여비 | J39: =L39-K39 -> 0 | K39: 0 | L39: =H39*I39 -> 0
C40: 수용비 및 수수료 | E40: 위탁정산비용 | G40: 회 | J40: =L40-K40 -> 0 | K40: 0 | L40: =H40*I40 -> 0
C41: 외부전문기술활용비 | E41: 공인인증시험비 | G41: 회 | J41: 0 | K41: 0 | L41: =H41*I41 -> 0
J42: 0 | K42: 0 | L42: 0
J43: 0 | K43: 0 | L43: 0
J44: 0 | K44: 0 | L44: 0
J45: 0 | K45: 0 | L45: 0
J46: 0 | K46: 0 | L46: 0
J47: 0 | K47: 0 | L47: 0
J48: 0 | K48: 0 | L48: 0
J49: 0 | K49: 0 | L49: 0
J50: =L50-K50 -> 0 | K50: 0 | L50: =H41*I41 -> 0
C51: 회계정산비용(필수) | E51: 회계정산비용 | J51: 0 | K51: 0 | L51: =H51*I51 -> 0
C52: 연구활동비 합계 | J52: =SUM(J39:J51) -> 0 | K52: =SUM(K39:K51) -> 0 | L52: =SUM(L39:L51) -> 0
B53: 위탁연구개발비 | C53: 위탁연구개발비 | J53: =L53-K53 -> 0 | K53: 0 | L53: =H53*I53 -> 0
C54: 위탁연구개발비 합계 | J54: =SUM(J53:J53) -> 0 | K54: =SUM(K53:K53) -> 0 | L54: =SUM(L53:L53) -> 0
B55: 연구장비, 연구재료비, 연구활동비, 위탁연구개발비 합계 | J55: =SUM(J26,J54,J52,J38) -> 0 | K55: =SUM(K26,K54,K52,K38) -> 0 | L55: =SUM(L26,L54,L52,L38) -> 0
B56: 직접비(인건비 포함) 합계 | J56: =SUM(J15+J55) -> 0 | K56: =SUM(K15+K55) -> 0 | L56: =SUM(L15+L55) -> 0
B58: 구분 | D58: 내역(품명) | G58: 규격 | H58: 수량 | I58: 단가 | J58: 현금(천원) | K58: 현물(천원) | L58: 합계
C59: 성과활용지원비 | G59: 회 | J59: =L59-K59 -> 0 | K59: 0 | L59: =I59 -> 0
G60: 회 | J60: 0 | K60: 0 | L60: =I60 -> 0
D61: 성과활용지원비 소계 | J61: =SUM(J59:J60) -> 0 | K61: =SUM(K59:K60) -> 0 | L61: 0
C62: 간접비 합계 | J62: =J61 -> 0 | K62: =K61 -> 0 | L62: =L61 -> 0
J64: 현금 | K64: 현물 | L64: 합계
B65: 직접비 합계 | J65: =J56 -> 0 | K65: =K56 -> 0 | L65: =L56 -> 0
B66: 간접비 합계 | J66: =J62 -> 0 | K66: =K62 -> 0 | L66: =L62 -> 0
B67: 사업비합계 | J67: =SUM(J65:J66) -> 0 | K67: =SUM(K65:K66) -> 0 | L67: 0
B70: 비 목 | D70: 현 금 | E70: 현 물 | F70: 계
B71: 1. 직접비 | D71: =D74+D75+D76+D77+D78 -> 0 | E71: =E74+E75+E76+E77+E78 -> 0 | F71: =F74+F75+F76+F77+F78 -> 0
B72: 1.1 인건비 | C72: 1.1.1 기존인건비 | D72: =J10 -> 0 | E72: =K10 -> 0 | F72: =D72+E72 -> 0
C73: 1.1.2 신규인건비 | D73: =J14 -> 0 | E73: =K14 -> 0 | F73: 0
B74: 인건비소계 | D74: =D72+D73 -> 0 | E74: =E72+E73 -> 0 | F74: 0
B75: 1.3 연구장비 | D75: =J26 -> 0 | E75: =K26 -> 0 | F75: 0
B76: 1.4 연구재료비 | D76: =J38 -> 0 | E76: =K38 -> 0 | F76: 0
B77: 1.5 연구활동비 | D77: =J52 -> 0 | E77: =K52 -> 0 | F77: 0
B78: 1.7 위탁연구개발비 | D78: =J54 -> 0 | E78: =K54 -> 0 | F78: 0
B79: 2. 간접비 | D79: =D80 -> 0 | E79: =E80 -> 0 | F79: 0
B80: 2.1 성과활용지원비 | D80: =J61 -> 0 | E80: =K61 -> 0 | F80: 0
B81: 사업비합계 | D81: =D71+D79 -> 0 | E81: =E71+E79 -> 0 | F81: 0

Sheet 2차년도 (2)
AM1: 시작품/시제품 제작경비 | AN1: 외부전문기술활용비
B2: 국방벤처 혁신기술 사업비소요명세서 자동계산 엑셀 (단위 : 천원) | AM2: =SUMIF(C18:I54,"시작품/시제품 제작경비",J18:J54) -> 0 | AN2: =SUMIF(C18:I54,"외부전문기술활용비",J18:J54) -> 0
B4: 구분 | D4: 참여인원 | E4: 직위 | F4: 연봉 (직접입력) | G4: 1개월인건비 | H4: 참여율 (직접입력) | I4: 참여기간 (직접입력) | J4: 현금(천원) | K4: 현물(천원) (직접입력) | L4: 합계
B5: 기존인력 인건비 | D5: 홍길동 1 | E5: 본부장 | F5: 60000 | G5: =F5/12 -> 5000 | J5: =L5-K5 -> 0 | L5: =G5*H5*I5 -> 0
D6: 홍길동 2 | E6: 팀장 | F6: 50000 | G6: =F6/12 -> 4166.666667 | J6: =L6-K6 -> 0 | K6: 0 | L6: =G6*H6*I6 -> 0
D7: 홍길동 3 | E7: 팀원 | F7: 40000 | G7: 3333.333333 | J7: 0 | K7: 0 | L7: 0
D8: 홍길동 4 | E8: 팀원 | F8: 30000 | G8: 2500 | J8: 0 | K8: 0 | L8: 0
D9: 홍길동 5 | E9: 팀원 | F9: 20000 | G9: 1666.666667 | J9: 0 | K9: 0 | L9: 0 | AZ9: 연구시설장비비 | BA9: 시약/재료구입비 | BB9: 지식재산 창출 활동비 | BC9: 인력지원비
D10: 기존인력 인건비합계 | J10: =SUM(J5:J9) -> 0 | K10: =SUM(K5:K9) -> 0 | L10: =SUM(L5:L9) -> 0 | BA10: 시작품/시제품 제작경비 | BB10: 외부전문기술활용비 | BC10: 연구지원비
B11: 신규인력 인건비 | D11: 홍길동 6 | E11: 팀장 | F11: 50000 | G11: =F11/12 -> 4166.666667 | J11: =L11-K11 -> 0 | K11: 0 | L11: =G11*H11*I11 -> 0 | BB11: 회의비 | BC11: 성과활용지원비
D12: 홍길동 7 | E12: 팀원 | F12: 40000 | G12: 3333.333333 | J12: 0 | K12: 0 | L12: =G12*H12*I12 -> 0 | BB12: 국내여비
D13: 홍길동 8 | E13: 팀원 | F13: 30000 | G13: 2500 | J13: 0 | K13: 0 | L13: 0 | BB13: 국외여비
D14: 신규인력 인건비합계 | J14: =SUM(J11:J13) -> 0 | K14: =SUM(K11:K13) -> 0 | L14: =SUM(L11:L13) -> 0 | BB14: 소프트웨어활용비
B15: 인건비 전체 합계 | J15: =J10+J14 -> 0 | K15: =K10+K14 -> 0 | L15: =L10+L14 -> 0 | BB15: 사무용품
BB16: 연구인력지원비
C17: 구분 | E17: 내역(품명) | G17: 규격 | H17: 수량 | I17: 단가 | J17: 현금(천원) | K17: 현물(천원) | L17: 합계 | BB17: 기타
B18: 연구시설/장비비 | C18: 연구시설장비비 | J18: =L18-K18 -> 0 | K18: 0 | L18: =H18*I18 -> 0 | BB18: 회계정산비용
J19: 0 | K19: 0 | L19: =H19*I19 -> 0
J20: 0 | K20: 0 | L20: 0
C21: 연구시설장비비 | J21: 0 | K21: 0 | L21: 0
J22: 0 | K22: 0 | L22: =H22*I22 -> 0
J23: 0 | K23: 0 | L23: =H23*I23 -> 0
J24: 0 | K24: 0 | L24: 0
J25: 0 | K25: 0 | L25: 0
C26: 연구장비 합계 | J26: =SUM(J18:J25) -> 0 | K26: =SUM(K18:K25) -> 0 | L26: =SUM(L18:L25) -> 0
B27: 연구재료비 | C27: 시약/재료구입비 | J27: =L27-K27 -> 0 | K27: 0 | L27: =H27*I27 -> 0
C28: 시작품/시제품 제작경비 | J28: 0 | K28: 0 | L28: =H28*I28 -> 0
J29: 0 | K29: 0 | L29: =H29*I29 -> 0
J30: 0 | K30: 0 | L30: 0
J31: 0 | K31: 0 | L31: 0
J32: 0 | K32: 0 | L32: 0
J33: 0 | K33: 0 | L33: 0
J34: 0 | K34: 0 | L34: 0
J35: 0 | K35: 0 | L35: 0
J36: 0 | K36: 0 | L36: 0
J37: 0 | K37: 0 | L37: 0
C38: 연구재료비 합계 | J38: =SUM(J27:J37) -> 0 | K38: =SUM(K27:K37) -> 0 | L38: =SUM(L27:L37) -> 0
B39: 연구활동비 | C39: 국외여비 | J39: =L39-K39 -> 0 | K39: 0 | L39: =H39*I39 -> 0
C40: 수용비 및 수수료 | E40: 위탁정산비용 | G40: 회 | J40: =L40-K40 -> 0 | K40: 0 | L40: =H40*I40 -> 0
C41: 외부전문기술활용비 | E41: 공인인증시험비 | G41: 회 | J41: 0 | K41: 0 | L41: =H41*I41 -> 0
J42: 0 | K42: 0 | L42: 0
J43: 0 | K43: 0 | L43: 0
J44: 0 | K44: 0 | L44: 0
J45: 0 | K45: 0 | L45: 0
J46: 0 | K46: 0 | L46: 0
J47: 0 | K47: 0 | L47: 0
J48: 0 | K48: 0 | L48: 0
J49: 0 | K49: 0 | L49: 0
J50: =L50-K50 -> 0 | K50: 0 | L50: =H41*I41 -> 0
C51: 회계정산비용(필수) | E51: 회계정산비용 | J51: 0 | K51: 0 | L51: =H51*I51 -> 0
C52: 연구활동비 합계 | J52: =SUM(J39:J51) -> 0 | K52: =SUM(K39:K51) -> 0 | L52: =SUM(L39:L51) -> 0
B53: 위탁연구개발비 | C53: 위탁연구개발비 | J53: =L53-K53 -> 0 | K53: 0 | L53: =H53*I53 -> 0
C54: 위탁연구개발비 합계 | J54: =SUM(J53:J53) -> 0 | K54: =SUM(K53:K53) -> 0 | L54: =SUM(L53:L53) -> 0
B55: 연구장비, 연구재료비, 연구활동비, 위탁연구개발비 합계 | J55: =SUM(J26,J54,J52,J38) -> 0 | K55: =SUM(K26,K54,K52,K38) -> 0 | L55: =SUM(L26,L54,L52,L38) -> 0
B56: 직접비(인건비 포함) 합계 | J56: =SUM(J15+J55) -> 0 | K56: =SUM(K15+K55) -> 0 | L56: =SUM(L15+L55) -> 0
B58: 구분 | D58: 내역(품명) | G58: 규격 | H58: 수량 | I58: 단가 | J58: 현금(천원) | K58: 현물(천원) | L58: 합계
C59: 성과활용지원비 | G59: 회 | J59: =L59-K59 -> 0 | K59: 0 | L59: =I59 -> 0
G60: 회 | J60: 0 | K60: 0 | L60: =I60 -> 0
D61: 성과활용지원비 소계 | J61: =SUM(J59:J60) -> 0 | K61: =SUM(K59:K60) -> 0 | L61: 0
C62: 간접비 합계 | J62: =J61 -> 0 | K62: =K61 -> 0 | L62: =L61 -> 0
J64: 현금 | K64: 현물 | L64: 합계
B65: 직접비 합계 | J65: =J56 -> 0 | K65: =K56 -> 0 | L65: =L56 -> 0
B66: 간접비 합계 | J66: =J62 -> 0 | K66: =K62 -> 0 | L66: =L62 -> 0
B67: 사업비합계 | J67: =SUM(J65:J66) -> 0 | K67: =SUM(K65:K66) -> 0 | L67: 0
B70: 비 목 | D70: 현 금 | E70: 현 물 | F70: 계
B71: 1. 직접비 | D71: =D74+D75+D76+D77+D78 -> 0 | E71: =E74+E75+E76+E77+E78 -> 0 | F71: =F74+F75+F76+F77+F78 -> 0
B72: 1.1 인건비 | C72: 1.1.1 기존인건비 | D72: =J10 -> 0 | E72: =K10 -> 0 | F72: =D72+E72 -> 0
C73: 1.1.2 신규인건비 | D73: =J14 -> 0 | E73: =K14 -> 0 | F73: 0
B74: 인건비소계 | D74: =D72+D73 -> 0 | E74: =E72+E73 -> 0 | F74: 0
B75: 1.3 연구장비 | D75: =J26 -> 0 | E75: =K26 -> 0 | F75: 0
B76: 1.4 연구재료비 | D76: =J38 -> 0 | E76: =K38 -> 0 | F76: 0
B77: 1.5 연구활동비 | D77: =J52 -> 0 | E77: =K52 -> 0 | F77: 0
B78: 1.7 위탁연구개발비 | D78: =J54 -> 0 | E78: =K54 -> 0 | F78: 0
B79: 2. 간접비 | D79: =D80 -> 0 | E79: =E80 -> 0 | F79: 0
B80: 2.1 성과활용지원비 | D80: =J61 -> 0 | E80: =K61 -> 0 | F80: =D80+E80 -> 0
B81: 사업비합계 | D81: =D71+D79 -> 0 | E81: =E71+E79 -> 0 | F81: 0

Sheet 3차년도 (2)
AM1: 시작품/시제품 제작경비 | AN1: 외부전문기술활용비
B2: 국방벤처 혁신기술 사업비소요명세서 자동계산 엑셀 (단위 : 천원) | AM2: =SUMIF(C18:I54,"시작품/시제품 제작경비",J18:J54) -> 0 | AN2: =SUMIF(C18:I54,"외부전문기술활용비",J18:J54) -> 0
B4: 구분 | D4: 참여인원 | E4: 직위 | F4: 연봉 (직접입력) | G4: 1개월인건비 | H4: 참여율 (직접입력) | I4: 참여기간 (직접입력) | J4: 현금(천원) | K4: 현물(천원) (직접입력) | L4: 합계
B5: 기존인력 인건비 | D5: 홍길동 1 | E5: 본부장 | F5: 60000 | G5: =F5/12 -> 5000 | J5: =L5-K5 -> 0 | L5: =G5*H5*I5 -> 0
D6: 홍길동 2 | E6: 팀장 | F6: 50000 | G6: =F6/12 -> 4166.666667 | J6: =L6-K6 -> 0 | K6: 0 | L6: =G6*H6*I6 -> 0
D7: 홍길동 3 | E7: 팀원 | F7: 40000 | G7: 3333.333333 | J7: 0 | K7: 0 | L7: 0
D8: 홍길동 4 | E8: 팀원 | F8: 30000 | G8: 2500 | J8: 0 | K8: 0 | L8: 0
D9: 홍길동 5 | E9: 팀원 | F9: 20000 | G9: 1666.666667 | J9: 0 | K9: 0 | L9: 0 | AZ9: 연구시설장비비 | BA9: 시약/재료구입비 | BB9: 지식재산 창출 활동비 | BC9: 인력지원비
D10: 기존인력 인건비합계 | J10: =SUM(J5:J9) -> 0 | K10: =SUM(K5:K9) -> 0 | L10: =SUM(L5:L9) -> 0 | BA10: 시작품/시제품 제작경비 | BB10: 외부전문기술활용비 | BC10: 연구지원비
B11: 신규인력 인건비 | D11: 홍길동 6 | E11: 팀장 | F11: 50000 | G11: =F11/12 -> 4166.666667 | J11: =L11-K11 -> 0 | K11: 0 | L11: =G11*H11*I11 -> 0 | BB11: 회의비 | BC11: 성과활용지원비
D12: 홍길동 7 | E12: 팀원 | F12: 40000 | G12: 3333.333333 | J12: 0 | K12: 0 | L12: =G12*H12*I12 -> 0 | BB12: 국내여비
D13: 홍길동 8 | E13: 팀원 | F13: 30000 | G13: 2500 | J13: 0 | K13: 0 | L13: 0 | BB13: 국외여비
D14: 신규인력 인건비합계 | J14: =SUM(J11:J13) -> 0 | K14: =SUM(K11:K13) -> 0 | L14: =SUM(L11:L13) -> 0 | BB14: 소프트웨어활용비
B15: 인건비 전체 합계 | J15: =J10+J14 -> 0 | K15: =K10+K14 -> 0 | L15: =L10+L14 -> 0 | BB15: 사무용품
BB16: 연구인력지원비
C17: 구분 | E17: 내역(품명) | G17: 규격 | H17: 수량 | I17: 단가 | J17: 현금(천원) | K17: 현물(천원) | L17: 합계 | BB17: 기타
B18: 연구시설/장비비 | C18: 연구시설장비비 | J18: =L18-K18 -> 0 | K18: 0 | L18: =H18*I18 -> 0 | BB18: 회계정산비용
J19: 0 | K19: 0 | L19: =H19*I19 -> 0
J20: 0 | K20: 0 | L20: 0
C21: 연구시설장비비 | J21: 0 | K21: 0 | L21: 0
J22: 0 | K22: 0 | L22: =H22*I22 -> 0
J23: 0 | K23: 0 | L23: =H23*I23 -> 0
J24: 0 | K24: 0 | L24: 0
J25: 0 | K25: 0 | L25: 0
C26: 연구장비 합계 | J26: =SUM(J18:J25) -> 0 | K26: =SUM(K18:K25) -> 0 | L26: =SUM(L18:L25) -> 0
B27: 연구재료비 | C27: 시약/재료구입비 | J27: =L27-K27 -> 0 | K27: 0 | L27: =H27*I27 -> 0
C28: 시작품/시제품 제작경비 | J28: 0 | K28: 0 | L28: =H28*I28 -> 0
J29: 0 | K29: 0 | L29: =H29*I29 -> 0
J30: 0 | K30: 0 | L30: 0
J31: 0 | K31: 0 | L31: 0
J32: 0 | K32: 0 | L32: 0
J33: 0 | K33: 0 | L33: 0
J34: 0 | K34: 0 | L34: 0
J35: 0 | K35: 0 | L35: 0
J36: 0 | K36: 0 | L36: 0
J37: 0 | K37: 0 | L37: 0
C38: 연구재료비 합계 | J38: =SUM(J27:J37) -> 0 | K38: =SUM(K27:K37) -> 0 | L38: =SUM(L27:L37) -> 0
B39: 연구활동비 | C39: 국외여비 | J39: =L39-K39 -> 0 | K39: 0 | L39: =H39*I39 -> 0
C40: 수용비 및 수수료 | E40: 위탁정산비용 | G40: 회 | J40: =L40-K40 -> 0 | K40: 0 | L40: =H40*I40 -> 0
C41: 외부전문기술활용비 | E41: 공인인증시험비 | G41: 회 | J41: 0 | K41: 0 | L41: =H41*I41 -> 0
J42: 0 | K42: 0 | L42: 0
J43: 0 | K43: 0 | L43: 0
J44: 0 | K44: 0 | L44: 0
J45: 0 | K45: 0 | L45: 0
J46: 0 | K46: 0 | L46: 0
J47: 0 | K47: 0 | L47: 0
J48: 0 | K48: 0 | L48: 0
J49: 0 | K49: 0 | L49: 0
J50: =L50-K50 -> 0 | K50: 0 | L50: =H41*I41 -> 0
C51: 회계정산비용(필수) | E51: 회계정산비용 | J51: 0 | K51: 0 | L51: =H51*I51 -> 0
C52: 연구활동비 합계 | J52: =SUM(J39:J51) -> 0 | K52: =SUM(K39:K51) -> 0 | L52: =SUM(L39:L51) -> 0
B53: 위탁연구개발비 | C53: 위탁연구개발비 | J53: =L53-K53 -> 0 | K53: 0 | L53: =H53*I53 -> 0
C54: 위탁연구개발비 합계 | J54: =SUM(J53:J53) -> 0 | K54: =SUM(K53:K53) -> 0 | L54: =SUM(L53:L53) -> 0
B55: 연구장비, 연구재료비, 연구활동비, 위탁연구개발비 합계 | J55: =SUM(J26,J54,J52,J38) -> 0 | K55: =SUM(K26,K54,K52,K38) -> 0 | L55: =SUM(L26,L54,L52,L38) -> 0
B56: 직접비(인건비 포함) 합계 | J56: =SUM(J15+J55) -> 0 | K56: =SUM(K15+K55) -> 0 | L56: =SUM(L15+L55) -> 0
B58: 구분 | D58: 내역(품명) | G58: 규격 | H58: 수량 | I58: 단가 | J58: 현금(천원) | K58: 현물(천원) | L58: 합계
C59: 성과활용지원비 | G59: 회 | J59: =L59-K59 -> 0 | K59: 0 | L59: =I59 -> 0
G60: 회 | J60: 0 | K60: 0 | L60: =I60 -> 0
D61: 성과활용지원비 소계 | J61: =SUM(J59:J60) -> 0 | K61: =SUM(K59:K60) -> 0 | L61: 0
C62: 간접비 합계 | J62: =J61 -> 0 | K62: =K61 -> 0 | L62: =L61 -> 0
J64: 현금 | K64: 현물 | L64: 합계
B65: 직접비 합계 | J65: =J56 -> 0 | K65: =K56 -> 0 | L65: =L56 -> 0
B66: 간접비 합계 | J66: =J62 -> 0 | K66: =K62 -> 0 | L66: =L62 -> 0
B67: 사업비합계 | J67: =SUM(J65:J66) -> 0 | K67: =SUM(K65:K66) -> 0 | L67: 0
B70: 비 목 | D70: 현 금 | E70: 현 물 | F70: 계
B71: 1. 직접비 | D71: =D74+D75+D76+D77+D78 -> 0 | E71: =E74+E75+E76+E77+E78 -> 0 | F71: =F74+F75+F76+F77+F78 -> 0
B72: 1.1 인건비 | C72: 1.1.1 기존인건비 | D72: =J10 -> 0 | E72: =K10 -> 0 | F72: =D72+E72 -> 0
C73: 1.1.2 신규인건비 | D73: =J14 -> 0 | E73: =K14 -> 0 | F73: 0
B74: 인건비소계 | D74: =D72+D73 -> 0 | E74: =E72+E73 -> 0 | F74: 0
B75: 1.3 연구장비 | D75: =J26 -> 0 | E75: =K26 -> 0 | F75: 0
B76: 1.4 연구재료비 | D76: =J38 -> 0 | E76: =K38 -> 0 | F76: 0
B77: 1.5 연구활동비 | D77: =J52 -> 0 | E77: =K52 -> 0 | F77: 0
B78: 1.7 위탁연구개발비 | D78: =J54 -> 0 | E78: =K54 -> 0 | F78: 0
B79: 2. 간접비 | D79: =D80 -> 0 | E79: =E80 -> 0 | F79: 0
B80: 2.1 성과활용지원비 | D80: =J61 -> 0 | E80: =K61 -> 0 | F80: =D80+E80 -> 0
B81: 사업비합계 | D81: =D71+D79 -> 0 | E81: =E71+E79 -> 0 | F81: 0
